bitfinex-derivatives/quotes_BTCF0:USTF0_20251109
["timestamp","ask_amount","ask_price","bid_price","bid_amount"]
[1762714101323,0.04511,103940.0,103930.0,0.82314039]
[1762714102022,0.02355,103940.0,103930.0,0.82314039]
[1762714102320,0.04511,103940.0,103930.0,0.82314039]
[1762714106522,0.001,103940.0,103930.0,0.7887227]
[1762714107624,0.001,103940.0,103930.0,0.80626393]
[1762714109826,0.001,103940.0,103930.0,0.95366393]
[1762714111319,0.001,103940.0,103930.0,0.8843827]
[1762714117234,0.001,103940.0,103930.0,0.95366393]
[1762714117821,0.04513,103940.0,103930.0,0.95366393]
[1762714118025,0.29984721,103940.0,103930.0,0.68092029]
[1762714118224,0.29984721,103940.0,103930.0,0.76195772]
[1762714118627,0.29984721,103940.0,103930.0,0.85819992]
[1762714118935,0.20361421,103940.0,103930.0,0.85819992]
[1762714119136,0.29984721,103940.0,103930.0,0.85819992]
[1762714119633,0.20361421,103940.0,103930.0,0.85819992]
[1762714120025,0.29984721,103940.0,103930.0,0.85819992]
[1762714121634,0.29984721,103940.0,103930.0,0.71079992]
[1762714122446,0.20361421,103940.0,103930.0,0.71079992]
[1762714122943,0.29984721,103940.0,103930.0,0.71079992]
[1762714124032,0.001,103940.0,103930.0,0.80255735]
[1762714124237,0.001,103940.0,103930.0,0.82015143]
[1762714126541,0.03467405,103980.0,103960.0,0.0489645]
[1762714126748,0.01368,103990.0,103980.0,0.096196]
[1762714127044,0.01335,104000.0,103990.0,0.0961867]
[1762714127348,0.05655,104000.0,103990.0,0.7294508]
[1762714127847,0.0432,104000.0,103990.0,0.7294508]
[1762714128043,0.05655,104010.0,104000.0,0.0961775]
[1762714128350,0.05655,104010.0,104000.0,0.73441923]
[1762714128648,0.05655,104010.0,104000.0,0.6533818]
[1762714129242,0.05655,104010.0,104000.0,0.67905859]
[1762714130456,0.05655,104010.0,104000.0,0.64472915]
[1762714131149,0.01368,104020.0,104000.0,0.96612658]
[1762714131150,0.05688,104020.0,104000.0,0.96612658]
[1762714131342,0.01368,104010.0,104000.0,0.56369172]
[1762714131546,0.05688,104010.0,104000.0,0.93314437]
[1762714131943,0.01368,104020.0,104010.0,0.0961682]
[1762714132138,0.01368,104020.0,104010.0,0.48259889]
[1762714132342,0.05888,104020.0,104010.0,0.64467375]
[1762714133749,0.05888,104020.0,104010.0,0.72571118]
[1762714134351,0.01368,104030.0,104010.0,0.72571118]
[1762714134352,0.05688,104040.0,104030.0,0.0961497]
[1762714134654,0.05688,104050.0,104040.0,0.0961405]
[1762714134850,0.05688,104050.0,104040.0,0.70005279]
[1762714135048,0.2012105,104050.0,104040.0,0.70005279]
[1762714136246,0.05688,104050.0,104040.0,0.70005279]
[1762714136753,0.05988,104050.0,104040.0,0.70005279]
[1762714137256,0.06288,104050.0,104040.0,0.70005279]
[1762714137659,0.06288,104050.0,104040.0,0.61901536]
[1762714138045,0.006,104050.0,104040.0,0.70005279]
[1762714138251,0.02844,104050.0,104040.0,0.70005279]
[1762714138650,0.04239,104050.0,104040.0,0.70005279]
[1762714138850,0.006,104050.0,104040.0,0.77765371]
[1762714140756,0.02844,104050.0,104040.0,0.77765371]
[1762714141059,0.02444,104050.0,104040.0,0.77765371]
[1762714141260,0.02644,104050.0,104040.0,0.77765371]
[1762714141659,0.04039,104050.0,104040.0,0.77765371]
[1762714141860,0.06221,104050.0,104040.0,0.77765371]
[1762714142058,0.06221,104050.0,104040.0,0.69661628]
[1762714143561,0.1583412,104050.0,104040.0,0.69661628]
[1762714144158,0.1583412,104050.0,104040.0,0.4569405]
[1762714144460,0.1583412,104050.0,104040.0,0.61901536]
[1762714145049,0.37475,104100.0,104050.0,0.0961312]
[1762714145251,0.3608,104120.0,104110.0,0.0960758]
[1762714145461,0.01395,104120.0,104110.0,0.24311229]
[1762714145650,0.05821,104120.0,104110.0,0.40219486]
[1762714145849,0.05821,104120.0,104110.0,0.08103743]
[1762714146050,0.05821,104120.0,104100.0,0.20282771]
[1762714146051,0.05821,104110.0,104100.0,0.20282771]
[1762714146358,0.05821,104110.0,104100.0,0.61910174]
[1762714146856,0.05821,104110.0,104100.0,0.5832383]
[1762714147660,0.008,104120.0,104110.0,0.0960758]
[1762714147862,0.05821,104160.0,104130.0,0.0960573]
[1762714148065,0.01395,104160.0,104150.0,0.58305032]
[1762714148263,0.37960235,104180.0,104150.0,0.85326284]
[1762714148264,0.06306235,104180.0,104150.0,0.85326284]
[1762714148562,0.04426,104170.0,104160.0,0.22224112]
[1762714148765,0.148651,104180.0,104170.0,0.0960205]
[1762714148965,0.00485235,104180.0,104170.0,0.58303192]
[1762714150462,0.01880235,104180.0,104170.0,0.58303192]
[1762714150766,0.00485235,104180.0,104170.0,0.67902424]
[1762714151064,0.01880235,104180.0,104170.0,0.58403202]
[1762714151268,2.35e-06,104180.0,104170.0,0.68002434]
[1762714151566,0.00200235,104180.0,104170.0,0.92002434]
[1762714151762,0.00200235,104180.0,104170.0,0.68002434]
[1762714151962,0.00200235,104180.0,104170.0,0.92002434]
[1762714152168,0.00200235,104180.0,104170.0,0.68002434]
[1762714152364,0.01395,104200.0,104190.0,0.0960021]
[1762714152560,0.01395,104240.0,104200.0,0.5759578]
[1762714152760,0.3608,104260.0,104250.0,0.0959411]
[1762714152967,0.1098541,104300.0,104250.0,0.90809659]
[1762714152968,0.0959102,104290.0,104250.0,0.90809659]
[1762714153271,0.01,104270.0,104250.0,0.78188517]
[1762714153483,0.01,104270.0,104260.0,0.10577324]
[1762714153663,0.31839279,104270.0,104260.0,0.10577324]
[1762714153969,0.05821,104260.0,104250.0,0.12621142]
[1762714154271,0.5045539,104260.0,104250.0,0.22215832]
[1762714154463,0.00636923,104260.0,104250.0,0.22215832]
[1762714154658,0.01636923,104260.0,104250.0,0.22215832]
[1762714155070,0.01636923,104260.0,104250.0,0.22315832]
[1762714155265,0.01,104260.0,104250.0,0.67987698]
[1762714155469,0.01,104260.0,104250.0,0.92367698]
[1762714155777,0.01,104260.0,104250.0,0.58695832]
[1762714155970,0.01,104260.0,104250.0,0.82875832]
[1762714156870,0.02395,104260.0,104250.0,0.13221142]
[1762714157270,0.00014184,104270.0,104260.0,0.0959378]
[1762714157471,0.12994574,104270.0,104250.0,0.8083403]
[1762714157667,0.31799478,104270.0,104260.0,0.22214922]
[1762714158073,0.31799478,104270.0,104260.0,0.58294922]
[1762714158275,0.32436401,104270.0,104260.0,0.48701142]
[1762714158570,0.68516401,104270.0,104260.0,0.001]
[1762714159168,0.78109261,104270.0,104260.0,0.005]
[1762714159373,0.32436401,104270.0,104260.0,0.005]
[1762714160377,0.42129251,104270.0,104260.0,0.004]
[1762714160879,0.05821,104260.0,104250.0,0.3608]
[1762714161070,0.19438313,104260.0,104250.0,0.3608]
[1762714161267,0.33829521,104260.0,104250.0,0.4567469]
[1762714161967,0.33829521,104260.0,104250.0,0.3648]
[1762714162169,0.79503291,104260.0,104250.0,2.712e-05]
[1762714162573,0.68337521,104260.0,104250.0,0.09597402]
[1762714162763,0.68337521,104260.0,104250.0,0.45677402]
[1762714162971,0.33829521,104260.0,104250.0,0.45677402]
[1762714163579,0.33829521,104260.0,104250.0,0.36082712]
[1762714163770,0.33829521,104260.0,104250.0,0.45677402]
[1762714164478,0.31585521,104260.0,104250.0,2.712e-05]
[1762714164880,0.29403521,104260.0,104250.0,2.712e-05]
[1762714165180,0.38997161,104260.0,104250.0,2.712e-05]
[1762714165982,0.37797521,104260.0,104250.0,0.09597272]
[1762714166976,0.75077141,104260.0,104250.0,2.712e-05]
[1762714169181,0.03739,104300.0,104270.0,0.191854]
[1762714169371,0.34432,104300.0,104290.0,0.2857779]
[1762714169576,0.70512,104300.0,104290.0,0.2857779]
[1762714169775,0.34432,104300.0,104290.0,1.22141656]
[1762714170280,0.34432,104300.0,104290.0,0.98169656]
[1762714170476,0.002,104300.0,104290.0,1.58221656]
[1762714170679,0.002,104300.0,104290.0,1.93261656]
[1762714171070,0.3608,104320.0,104310.0,0.0958901]
[1762714171273,0.39819,104320.0,104310.0,0.2857594]
[1762714171470,0.54251362,104320.0,104310.0,0.2857594]
[1762714171673,0.18171362,104320.0,104310.0,0.2857594]
[1762714171976,0.97709362,104320.0,104310.0,0.2857594]
[1762714172172,0.50512362,104320.0,104310.0,0.2857594]
[1762714172373,0.54251362,104320.0,104310.0,0.62126289]
[1762714172584,0.54251362,104320.0,104310.0,0.2857594]
[1762714172585,0.62645362,104320.0,104310.0,0.2857594]
[1762714172879,0.54351362,104320.0,104310.0,0.38162289]
[1762714173287,0.54351362,104320.0,104310.0,0.62126289]
[1762714173677,0.18271362,104320.0,104310.0,0.38162289]
[1762714173879,0.18271362,104320.0,104310.0,0.98206289]
[1762714173880,0.18471362,104320.0,104310.0,0.98206289]
[1762714174278,0.18471362,104320.0,104310.0,0.74242289]
[1762714174479,0.14732362,104320.0,104310.0,0.98206289]
[1762714174684,0.14732362,104320.0,104310.0,0.74242289]
[1762714174883,0.14732362,104320.0,104310.0,1.00729534]
[1762714176081,0.14532362,104320.0,104310.0,0.76765534]
[1762714176389,0.14532362,104320.0,104310.0,1.00729534]
[1762714176786,0.14532362,104320.0,104310.0,1.01639233]
[1762714176985,0.14532362,104320.0,104310.0,1.00724561]
[1762714177377,0.14432362,104320.0,104310.0,1.01639233]
[1762714177581,0.14432362,104320.0,104310.0,0.77875233]
[1762714177776,0.14432362,104320.0,104310.0,0.80397053]
[1762714177988,0.14432362,104320.0,104310.0,1.04361053]
[1762714178178,0.14432362,104320.0,104310.0,0.80397053]
[1762714178384,0.14432362,104320.0,104310.0,1.04361053]
[1762714178586,0.14432362,104320.0,104310.0,0.77875233]
[1762714178780,0.14432362,104320.0,104310.0,1.01839233]
[1762714178984,0.36153462,104320.0,104310.0,0.31297062]
[1762714179183,0.72233462,104320.0,104310.0,0.1918693]
[1762714179687,1.32233462,104320.0,104310.0,0.1918693]
[1762714180486,1.32233462,104320.0,104310.0,0.002]
[1762714180686,1.32233462,104320.0,104310.0,0.1918693]
[1762714180687,0.72233462,104320.0,104310.0,0.1918693]
[1762714180888,0.62645362,104320.0,104310.0,0.2877595]
[1762714181088,0.62645362,104320.0,104310.0,0.1918693]
[1762714181796,0.72233472,104320.0,104310.0,0.002]
[1762714182095,0.62645362,104320.0,104310.0,0.002]
[1762714182299,0.62645362,104320.0,104310.0,0.2877596]
[1762714182798,0.62645362,104320.0,104310.0,0.31299743]
[1762714182991,0.62645362,104320.0,104310.0,0.2877596]
[1762714184802,0.03739,104380.0,104330.0,0.4793591]
[1762714185001,0.39819,104380.0,104370.0,0.1898693]
[1762714185190,0.14449267,104380.0,104370.0,0.6394643]
[1762714185502,0.18188267,104380.0,104370.0,0.73529124]
[1762714185901,0.18188267,104380.0,104370.0,0.63945604]
[1762714186087,0.9304217,104380.0,104370.0,0.66469387]
[1762714186294,0.9519817,104380.0,104370.0,0.63945604]
[1762714186490,1.12950779,104380.0,104370.0,0.44958674]
[1762714186701,0.2542552,104370.0,104360.0,0.00014418]
[1762714186895,0.99579423,104370.0,104360.0,0.00014418]
[1762714187192,1.01403364,104370.0,104360.0,0.00014418]
[1762714187404,1.10986884,104370.0,104360.0,0.00014418]
[1762714188302,1.10986884,104370.0,104360.0,0.00314418]
[1762714189094,1.11086884,104370.0,104360.0,0.00214418]
[1762714189704,1.46530884,104370.0,104360.0,0.00014418]
[1762714190001,0.27055,104350.0,104340.0,0.31096963]
[1762714190203,1.02405,104350.0,104340.0,0.2857318]
[1762714190500,1.6056933,104350.0,104340.0,0.2857318]
[1762714190701,1.6056933,104350.0,104340.0,0.31096963]
[1762714190902,1.5098397,104350.0,104340.0,0.31096963]
[1762714191088,1.62509095,104350.0,104340.0,0.21510713]
[1762714191289,1.62509095,104350.0,104340.0,0.1898693]
[1762714191492,1.53523735,104350.0,104340.0,0.2857321]
[1762714192704,0.82007735,104350.0,104340.0,0.2857321]
[1762714192998,0.63834668,104350.0,104340.0,0.67176993]
[1762714193198,0.61533306,104350.0,104340.0,0.70609937]
[1762714193799,0.006,104350.0,104340.0,0.77669746]
[1762714194001,0.07815418,104360.0,104350.0,0.0958536]
[1762714194192,0.00014418,104360.0,104350.0,0.86178861]
[1762714194397,0.07815418,104360.0,104350.0,0.89550792]
[1762714194698,0.42055321,104360.0,104350.0,0.99134384]
[1762714194900,0.07815418,104360.0,104350.0,0.99134384]
[1762714195100,0.69110321,104360.0,104350.0,0.99134384]
[1762714195301,0.72944321,104360.0,104350.0,0.53770792]
[1762714195807,0.42055321,104360.0,104350.0,0.96061535]
[1762714196002,0.20033929,104360.0,104350.0,0.59981535]
[1762714196204,0.32806929,104360.0,104350.0,1.15048465]
[1762714196500,0.67046832,104360.0,104350.0,1.05865791]
[1762714196900,0.06664929,104360.0,104350.0,1.15448465]
[1762714197207,0.40904832,104360.0,104350.0,1.15448465]
[1762714197402,0.06664929,104360.0,104350.0,1.15448465]
[1762714197807,0.40904832,104360.0,104350.0,1.15448465]
[1762714198000,0.06664929,104360.0,104350.0,1.15448465]
[1762714198202,0.06664929,104360.0,104350.0,1.17215087]
[1762714198511,0.31633009,104380.0,104370.0,0.0958353]
[1762714198699,0.75455522,104380.0,104370.0,0.05917326]
[1762714199005,0.93661866,104380.0,104370.0,0.05917326]
[1762714199201,1.29741866,104380.0,104370.0,0.03381329]
[1762714199404,0.95501963,104380.0,104370.0,0.18036853]
[1762714199706,1.20159256,104380.0,104370.0,0.18336853]
[1762714200102,0.3554553,104370.0,104360.0,0.05094482]
[1762714200304,1.44999433,104370.0,104360.0,0.03402217]
[1762714200503,1.44999433,104370.0,104360.0,0.0255641]
[1762714200504,1.59454149,104370.0,104360.0,0.0255641]
[1762714200698,1.14570619,104370.0,104360.0,0.1214086]
[1762714200894,1.49850619,104370.0,104360.0,0.3112779]
[1762714201108,0.74656619,104370.0,104360.0,0.64665798]
[1762714201306,0.76189363,104370.0,104360.0,0.28785798]
[1762714201500,0.31633009,104380.0,104370.0,0.0958353]
[1762714201696,0.05671009,104380.0,104370.0,0.8093553]
[1762714202009,1.202189,104380.0,104370.0,0.4485553]
[1762714202202,0.841389,104380.0,104370.0,0.35272]
[1762714202407,1.202189,104380.0,104370.0,0.4485553]
[1762714202609,0.25962,104370.0,104360.0,0.28885368]
[1762714202809,0.64035903,104370.0,104360.0,0.28585368]
[1762714203405,0.64035903,104370.0,104360.0,0.64665368]
[1762714203602,0.34239903,104370.0,104360.0,0.74247124]
[1762714203804,0.65872912,104380.0,104370.0,0.0958353]
[1762714203998,0.03739,104380.0,104370.0,0.8097553]
[1762714204414,0.03739,104380.0,104370.0,0.91499864]
[1762714204610,0.37978903,104380.0,104370.0,0.90556368]
[1762714204803,0.01165467,104390.0,104370.0,0.97484491]
[1762714204998,0.01165467,104390.0,104380.0,0.06253564]
[1762714205213,0.01165467,104390.0,104380.0,0.61320494]
[1762714205508,0.01165467,104390.0,104380.0,1.01776996]
[1762714205700,0.01165467,104390.0,104380.0,0.77828996]
[1762714205905,2.33549069,104400.0,104390.0,0.0958169]
[1762714206104,2.33549069,104400.0,104390.0,0.51797813]
[1762714206305,2.47995977,104400.0,104390.0,0.4486969]
[1762714206508,2.47995977,104400.0,104390.0,0.54448692]
[1762714206703,2.8223588,104400.0,104390.0,0.54448692]
[1762714206901,2.47995977,104400.0,104390.0,0.4486969]
[1762714207306,2.8223588,104400.0,104390.0,0.4486969]
[1762714207515,2.47995977,104400.0,104390.0,0.6385662]
[1762714207808,0.86279532,104400.0,104390.0,0.61376805]
[1762714207999,1.20519435,104400.0,104390.0,0.4486968]
[1762714208199,1.21019435,104400.0,104390.0,0.4486968]
[1762714208399,1.30600195,104400.0,104380.0,0.28583428]
[1762714208599,1.00115903,104390.0,104380.0,0.63855428]
[1762714208801,1.00115903,104390.0,104380.0,0.7343443]
[1762714209113,0.14419695,104390.0,104380.0,0.7343443]
[1762714209313,0.12119313,104390.0,104380.0,0.7343443]
[1762714209509,0.76155216,104390.0,104380.0,0.7343443]
[1762714209815,1.12235216,104390.0,104380.0,0.7343443]
[1762714210114,1.12235216,104390.0,104380.0,0.544475]
[1762714210414,1.12235216,104390.0,104380.0,0.7343443]
[1762714211206,0.49369,104390.0,104380.0,0.7343443]
[1762714211410,0.001,104390.0,104380.0,1.0951443]
[1762714211615,0.001,104390.0,104380.0,0.7343443]
[1762714212012,0.001,104390.0,104380.0,1.0951443]
[1762714212215,0.34339903,104390.0,104380.0,1.0951443]
[1762714212511,0.001,104390.0,104380.0,1.0951443]
[1762714213214,0.34339903,104390.0,104380.0,0.80362553]
[1762714213524,0.001,104390.0,104380.0,1.16442553]
[1762714213708,0.001,104390.0,104380.0,0.80362553]
[1762714214010,0.001,104390.0,104380.0,1.16442553]
[1762714214215,0.34339903,104390.0,104380.0,1.16442553]
[1762714214416,0.001,104390.0,104380.0,1.16442553]
[1762714214618,0.001,104390.0,104380.0,0.80362553]
[1762714215116,0.47528903,104390.0,104380.0,0.80362553]
[1762714215302,4e-08,104400.0,104390.0,0.0958169]
[1762714215508,0.17398339,104420.0,104410.0,0.0957985]
[1762714215709,0.30171339,104420.0,104410.0,0.6375478]
[1762714216016,0.30171339,104420.0,104410.0,0.80108973]
[1762714216218,0.64411242,104420.0,104410.0,0.80108973]
[1762714216415,0.00470339,104420.0,104410.0,0.80108973]
[1762714216608,0.00470339,104420.0,104410.0,1.16188973]
[1762714216812,0.07833339,104420.0,104410.0,1.16188973]
[1762714217016,0.07833339,104420.0,104410.0,1.24017357]
[1762714217216,0.42373242,104420.0,104410.0,1.17243084]
[1762714217518,0.42373242,104420.0,104410.0,1.24017357]
[1762714217519,0.08133339,104420.0,104410.0,1.24017357]
[1762714217913,0.07833339,104420.0,104410.0,1.24117357]
[1762714218114,0.42073242,104420.0,104410.0,1.24217357]
[1762714218316,0.42073242,104420.0,104410.0,0.81363084]
[1762714218513,0.33795339,104420.0,104410.0,0.81363084]
[1762714218714,0.67564903,104420.0,104410.0,0.81363084]
[1762714218914,0.33325,104420.0,104410.0,0.81363084]
[1762714219712,0.34325,104420.0,104410.0,0.46175084]
[1762714219917,0.21552,104420.0,104410.0,0.81331084]
[1762714220117,0.55791903,104420.0,104410.0,0.81331084]
[1762714220425,0.55791903,104420.0,104410.0,0.81287084]
[1762714220426,0.21552,104420.0,104410.0,0.81287084]
[1762714220614,0.55791903,104420.0,104410.0,1.17367084]
[1762714220811,0.08363,104420.0,104410.0,0.81617488]
[1762714221021,0.22552,104420.0,104410.0,0.74843215]
[1762714221213,0.35325,104420.0,104410.0,0.74843215]
[1762714221617,0.69564903,104420.0,104410.0,0.81617488]
[1762714221813,0.36239903,104420.0,104410.0,0.81617488]
[1762714222025,0.02,104420.0,104410.0,0.81617488]
[1762714222220,0.03,104420.0,104410.0,0.81617488]
[1762714222418,0.10363,104420.0,104410.0,0.81617488]
[1762714222616,0.10363,104420.0,104410.0,1.17697488]
[1762714223320,0.44602903,104420.0,104410.0,1.17697488]
[1762714223526,0.11363,104420.0,104410.0,1.17697488]
[1762714223821,0.11363,104420.0,104410.0,0.81617488]
[1762714224023,0.11363,104420.0,104410.0,1.17697488]
[1762714224220,0.45602903,104420.0,104410.0,1.17697488]
[1762714224417,0.11363,104420.0,104410.0,1.17697488]
[1762714224622,0.45602903,104420.0,104410.0,1.17697488]
[1762714224923,0.12306938,104420.0,104410.0,1.17697488]
[1762714225629,0.46546841,104420.0,104410.0,0.81617488]
[1762714225819,0.12306938,104420.0,104410.0,0.81617488]
[1762714226018,0.46546841,104420.0,104410.0,0.81617488]
[1762714226226,0.46546841,104420.0,104410.0,1.17697488]
[1762714226423,0.12306938,104420.0,104410.0,1.17697488]
[1762714226824,0.12306938,104420.0,104410.0,1.10923215]
[1762714227015,0.39403938,104420.0,104410.0,0.74843215]
[1762714227222,0.43237938,104420.0,104410.0,0.74843215]
[1762714227521,0.29329938,104420.0,104410.0,1.10923215]
[1762714227725,0.29329938,104420.0,104410.0,0.74843215]
[1762714228228,0.77477841,104420.0,104410.0,0.74843215]
[1762714228427,0.43237938,104420.0,104410.0,0.74843215]
[1762714228626,0.77477841,104420.0,104410.0,0.74843215]
[1762714229017,0.43237938,104420.0,104410.0,0.74843215]
[1762714229326,0.77477841,104420.0,104410.0,0.74840463]
[1762714229528,0.43237938,104420.0,104410.0,0.74840463]
[1762714229920,0.04943938,104420.0,104410.0,1.10920463]
[1762714230125,0.39183841,104420.0,104410.0,1.10920463]
[1762714230326,0.39183841,104420.0,104410.0,1.19580617]
[1762714230327,0.04943938,104420.0,104410.0,1.19580617]
[1762714230528,0.47668841,104420.0,104410.0,1.19580617]
[1762714231031,0.13428938,104420.0,104410.0,1.19580617]
[1762714231220,0.26608938,104420.0,104410.0,1.19580617]
[1762714231626,0.60848841,104420.0,104410.0,1.19580617]
[1762714232325,1.16966586,104420.0,104410.0,0.18440024]
[1762714232527,0.77052586,104420.0,104410.0,0.75492253]
[1762714232733,0.63144586,104420.0,104410.0,1.11572253]
[1762714233029,0.28904683,104420.0,104410.0,1.11572253]
[1762714233429,0.28904683,104420.0,104410.0,1.19160031]
[1762714233728,0.49964586,104420.0,104410.0,1.19160031]
[1762714233927,0.15724683,104420.0,104410.0,1.10499877]
[1762714234120,0.02408703,104440.0,104430.0,0.0957804]
[1762714234326,0.10893703,104440.0,104430.0,0.93121101]
[1762714234519,0.02408703,104440.0,104430.0,0.93121101]
[1762714234720,0.02408703,104440.0,104430.0,1.02698269]
[1762714235027,0.011,104450.0,104430.0,1.74829921]
[1762714235220,0.34539903,104440.0,104430.0,1.10734813]
[1762714235426,0.003,104440.0,104430.0,0.40166222]
[1762714235632,0.79104903,104440.0,104430.0,0.66602269]
[1762714235927,0.57745,104440.0,104430.0,0.31698269]
[1762714236123,1.05992903,104440.0,104430.0,0.75070222]
[1762714236521,1.09826903,104440.0,104430.0,0.18045993]
[1762714236831,1.09826903,104440.0,104430.0,0.65549054]
[1762714237328,1.24118758,104440.0,104430.0,0.57081101]
[1762714237523,1.24118758,104440.0,104430.0,0.66656434]
[1762714238832,1.24118758,104440.0,104430.0,0.22118394]
[1762714239028,1.25997517,104440.0,104430.0,0.4450203]
[1762714239821,1.24118758,104440.0,104430.0,0.0957803]
[1762714240022,1.24118758,104440.0,104430.0,0.4449403]
[1762714240227,1.24118758,104440.0,104430.0,0.4448603]
[1762714240428,1.24118758,104440.0,104430.0,0.0957803]
[1762714240429,1.26020093,104440.0,104430.0,0.0957803]
[1762714240629,1.24118758,104440.0,104430.0,0.57025091]
[1762714241230,1.24118758,104440.0,104430.0,0.4447803]
[1762714243228,1.24118758,104440.0,104430.0,0.52945983]
[1762714244239,0.89934678,104440.0,104430.0,0.75064377]
[1762714244431,1.24174581,104440.0,104430.0,0.75064377]
[1762714245225,1.20725748,104440.0,104430.0,0.75064377]
[1762714246834,1.20725748,104440.0,104430.0,0.62521316]
[1762714247034,1.20725748,104440.0,104430.0,0.30918993]
[1762714247830,1.20725748,104440.0,104430.0,0.29241719]
[1762714248031,1.20725748,104440.0,104430.0,0.56621719]
[1762714248832,1.0637807,104440.0,104430.0,0.56621719]
[1762714249040,1.0637807,104440.0,104430.0,0.4983104]
[1762714250534,1.0637807,104440.0,104430.0,0.6916478]
[1762714251052,1.0637807,104440.0,104430.0,0.2245104]
[1762714251444,1.0637807,104440.0,104430.0,0.4983104]
[1762714253237,1.0637807,104440.0,104430.0,0.56621719]
[1762714253540,1.0637807,104440.0,104430.0,0.6916478]
[1762714254538,0.73746903,104440.0,104430.0,0.78740113]
[1762714255044,1e-07,104440.0,104430.0,0.80417387]
[1762714255232,0.34239913,104440.0,104430.0,0.80417387]
[1762714255540,0.76112,104450.0,104440.0,0.3695712]
[1762714255732,0.76112,104450.0,104440.0,0.56291233]
[1762714256040,0.3718,104450.0,104440.0,0.64152134]
[1762714256235,0.3718,104450.0,104440.0,0.73727467]
[1762714256639,0.71719903,104450.0,104440.0,0.73727467]
[1762714256841,3e-08,104450.0,104440.0,1.09807467]
[1762714257039,0.0983565,104480.0,104450.0,0.57457]
[1762714257240,0.45166,104490.0,104470.0,0.28903071]
[1762714257441,0.68317159,104490.0,104480.0,0.04782]
[1762714257628,0.72151159,104490.0,104480.0,0.1913745]
[1762714257936,0.3883,104480.0,104470.0,0.22131049]
[1762714258144,0.78744,104480.0,104470.0,0.32669735]
[1762714258333,0.78744,104480.0,104470.0,0.42242319]
[1762714258841,0.75744,104480.0,104470.0,0.42242319]
[1762714259045,0.75744,104480.0,104470.0,0.42342319]
[1762714259542,0.75744,104480.0,104470.0,0.50824369]
[1762714259843,0.75744,104480.0,104470.0,0.38481308]
[1762714260244,0.75744,104480.0,104470.0,0.09771154]
[1762714260433,1.72298634,104480.0,104470.0,0.08296476]
[1762714260633,0.3931836,104470.0,104460.0,0.06775096]
[1762714260834,0.3883,104460.0,104450.0,0.12111652]
[1762714261039,0.8448528,104460.0,104450.0,0.46995652]
[1762714261337,1.71466464,104460.0,104450.0,0.12084522]
[1762714261534,1.58923403,104460.0,104450.0,0.12084522]
[1762714261743,1.58923403,104460.0,104440.0,0.2339382]
[1762714261744,0.29744,104450.0,104440.0,0.2339382]
[1762714261948,0.29744,104430.0,104420.0,0.0957834]
[1762714262143,0.62375288,104430.0,104420.0,0.4445434]
[1762714262440,0.62375288,104430.0,104420.0,0.75402657]
[1762714262841,0.62375288,104430.0,104420.0,0.7443334]
[1762714263549,0.98455288,104430.0,104420.0,0.4455434]
[1762714265143,0.98455288,104430.0,104420.0,0.4465434]
[1762714266037,0.98455288,104430.0,104420.0,0.5967134]
[1762714266238,0.98455288,104430.0,104420.0,0.8383834]
[1762714267045,0.62375288,104430.0,104420.0,0.8383834]
[1762714267647,0.62375288,104430.0,104420.0,0.8393834]
[1762714267848,0.62375288,104430.0,104420.0,0.8373834]
[1762714268152,0.62375288,104430.0,104420.0,0.7483334]
[1762714268337,0.62375288,104430.0,104420.0,0.004]
[1762714268541,0.62375288,104430.0,104420.0,0.35204]
[1762714268844,0.62375288,104430.0,104420.0,0.4478295]
[1762714269041,0.9893528,104430.0,104420.0,0.35204]
[1762714269248,0.25132,104420.0,104410.0,0.09594288]
[1762714269447,0.61212,104420.0,104410.0,0.09594288]
[1762714269643,0.8812693,104420.0,104410.0,0.00014418]
[1762714269840,0.25104,104410.0,104400.0,0.0958041]
[1762714270040,0.25102,104400.0,104390.0,0.44409154]
[1762714270242,0.61182,104400.0,104390.0,0.00011804]
[1762714270542,0.61182,104400.0,104390.0,0.34855804]
[1762714270946,0.61182,104400.0,104390.0,0.0340532]
[1762714271241,0.278737,104390.0,104380.0,0.03405671]
[1762714271543,0.06394,104380.0,104370.0,0.34832]
[1762714271748,0.42474,104380.0,104370.0,0.4441554]
[1762714271937,0.06394,104370.0,104360.0,0.1569813]
[1762714272140,0.06394,104370.0,104360.0,0.00072]
[1762714272141,0.39022717,104370.0,104360.0,0.00072]
[1762714272341,0.88195542,104370.0,104360.0,0.0965646]
[1762714272543,1.07379426,104370.0,104350.0,0.00014418]
[1762714272745,0.3608,104360.0,104350.0,0.00014418]
[1762714272949,0.48623061,104360.0,104330.0,0.0678608]
[1762714273245,0.7216,104340.0,104330.0,0.0958635]
[1762714273554,0.86606414,104340.0,104330.0,0.0958635]
[1762714274546,0.86606414,104340.0,104330.0,0.0968635]
[1762714275258,0.86606414,104340.0,104330.0,0.0988635]
[1762714276052,0.36094418,104350.0,104340.0,0.487703]
[1762714276260,0.36094418,104350.0,104340.0,0.688883]
[1762714276445,0.36094418,104350.0,104340.0,0.44085]
[1762714276646,0.36094418,104350.0,104340.0,0.536713]
[1762714277443,0.36094418,104350.0,104340.0,0.537713]
[1762714277644,0.36094418,104350.0,104340.0,0.837503]
[1762714277848,0.00012131,104370.0,104360.0,0.4876846]
[1762714278049,0.00012131,104370.0,104360.0,1.56227521]
[1762714278253,0.00012131,104370.0,104360.0,1.4368446]
[1762714278451,0.3608,104390.0,104360.0,2.01891113]
[1762714278650,0.3608,104390.0,104380.0,0.61309691]
[1762714278852,0.3608,104390.0,104380.0,0.8372663]
[1762714279054,0.3608,104390.0,104380.0,0.39184]
[1762714279358,0.3608,104390.0,104380.0,0.59378]
[1762714279556,0.36087972,104390.0,104380.0,0.59378]
[1762714279761,0.45669672,104390.0,104380.0,0.59378]
[1762714280458,0.45669672,104390.0,104370.0,0.09597568]
[1762714280657,0.45669672,104390.0,104380.0,0.35228]
[1762714280857,0.60113606,104390.0,104380.0,0.35228]
[1762714281258,1.67592667,104390.0,104380.0,0.003]
[1762714281457,1.67592667,104390.0,104370.0,0.00014418]
[1762714281458,0.0958262,104380.0,104370.0,0.00014418]
[1762714281653,0.4566262,104380.0,104370.0,0.00214418]
[1762714281854,0.60060018,104380.0,104370.0,0.00214418]
[1762714282060,0.72603079,104380.0,104370.0,0.00214418]
[1762714282259,0.0958358,104370.0,104350.0,0.4450895]
[1762714282457,0.3608,104360.0,104350.0,0.4450895]
[1762714282968,0.5039738,104360.0,104350.0,0.4450938]
[1762714283358,0.5998184,104360.0,104350.0,0.4450938]
[1762714283658,0.59989812,104360.0,104350.0,0.0958537]
[1762714283859,0.50405352,104360.0,104350.0,0.0958537]
[1762714284061,0.50905352,104360.0,104350.0,0.0958537]
[1762714284255,0.52505352,104360.0,104350.0,0.0968537]
[1762714284456,0.62089812,104360.0,104350.0,0.001]
[1762714284956,0.97269812,104360.0,104350.0,0.001]